Cogmind - Beta 10.1 @@@ ROGUE MODE // 2020.09.29 @ 19:20:21 Player: HOTSOUP Result: Destroyed by G-34 Mercenary with Small Laser Performance ------------- Evolutions (0) 0 Regions Visited (2) 400 Robots Destroyed (6) 30 Value Destroyed (129) 129 Prototype IDs (0) 0 Alien Tech Used (0) 0 Bonus (0) 0 TOTAL SCORE: 559 Bonus ------- None Cogmind --------- Core Integrity 0/250 Matter 300/300 Energy 100/100 System Corruption 1% Temperature Cool (6) Movement Core (50) Location -10/Mines Parts ------- > --- POWER (1) -------- (None) > --- PROPULSION (2) --- (None) > --- UTILITY (2) ------ Targeting Computer > --- WEAPON (2) ------- Scythe > --- INVENTORY (4) ---- Light Ion Engine Small Storage Unit Improved Trap Extractor Plasma Flamer Peak State ------------ > --- POWER ------------ (None) > --- PROPULSION ------- (None) > --- UTILITY ---------- Targeting Computer Improved Trap Extractor > --- WEAPON ----------- Scythe > --- INVENTORY -------- Light Ion Engine Small Storage Unit Plasma Flamer [Rating: 8] Favorites ----------- Power None Propulsion Flight Unit Flight Unit Flight Unit Utility Targeting Computer Device Improved Trap Extractor Processor Targeting Computer Weapon Light Assault Rifle Energy Gun Medium Laser Ballistic Gun Light Assault Rifle Slashing Weapon Scythe Build | -11 -10 -10 ------- Run | Scr Mat Min Slots Evolved . | . . . Power . | . . . Propulsion . | . . . Utility . | . . . Weapon . | . . . Parts Attached 7 | 2 2 3 Power . | . . . Engine . | . . . Core . | . . . Reactor . | . . . Propulsion 1 | . . 1 Treads . | . . . Leg . | . . . Wheel . | . . . Hover . | . . . Flight 1 | . . 1 Utility 3 | . 2 1 Device 1 | . . 1 Storage . | . . . Processor 2 | . 2 . Hackware . | . . . Protection . | . . . Artifact . | . . . Weapon 3 | 2 . 1 Energy Gun 1 | 1 . . Energy Cannon . | . . . Ballistic Gun 1 | 1 . . Ballistic Cannon . | . . . Launcher . | . . . Special Weapon . | . . . Impact Weapon . | . . . Slashing Weapon 1 | . . 1 Piercing Weapon . | . . . Special Melee Weapon . | . . . Unidentified Prototypes . | . . . Parts Lost 2 | . 1 1 Power . | . . . Propulsion 1 | . . 1 Utility . | . . . Weapon 1 | . 1 . Highest Loss Streak 1 | . 1 1 Average Slot Usage (%) 38 | . 52 31 Flight 2 | . . 3 Device 5 | . . 8 Processor 18 | . 26 14 Energy Gun 3 | . 12 . Ballistic Gun 4 | . 14 . Slashing Weapon 3 | . . 5 Naked Turns . | . . . Heaviest Build 3 | 3 3 3 Greatest Support 4 | 3 3 4 Greatest Overweight (x) . | . . . Average Overweight (x) . | . . . Largest Inventory Capacity 4 | 4 4 4 Average Capacity 4 | 4 4 4 Most Carried 4 | 2 4 4 Average Carried 3 | . 3 3 Final Capacity 4 | 4 4 4 Final Carried 4 | 2 4 4 Class Distribution -------------------- 100% | Mutant Dominant Class ---------------- Mutant | -10/Materials Mutant | -10/Mines Resources | -11 -10 -10 ----------- Run | Scr Mat Min Matter Collected 276 | 155 78 43 Remotely . | . . . Salvage Created 225 | . 78 147 Parts 13 | . 4 9 Haulers Intercepted . | . . . Recyclers Shooed . | . . . Parts Field Recycled . | . . . Retrieved Matter . | . . . Parts Self-Destructed . | . . . Prevented . | . . . Kills | -11 -10 -10 ------- Run | Scr Mat Min Combat Hostiles Destroyed 3 | . 2 1 Melee 1 | . . 1 Guns 2 | . 2 . Classes Destroyed 4 | . 1 3 Worker 1 | . . 1 Tunneler 1 | . . 1 Recycler 1 | . . 1 Grunt 3 | . 2 1 Best Kill Streak 2 | . 2 2 Combat Bots Only 2 | . 2 1 Max Kills in Single Turn 1 | . 1 1 Gunslinging . | . . . Exploded . | . . . Melee 1 | . . 1 Uniques/NPCs Destroyed . | . . . Combat | -11 -10 -10 -------- Run | Scr Mat Min Damage Taken 375 | . 164 211 Core 253 | . 86 167 Absorbed by Shields . | . . . Core Remaining (%) 100 | 100 . . Volleys Fired 11 | . 11 . Largest 2 | . 2 . Hottest 70 | . 70 . Shots Fired 19 | . 19 . Gun 19 | . 19 . Cannon . | . . . Launcher . | . . . Special . | . . . Kinetic 11 | . 11 . Thermal 8 | . 8 . Explosive . | . . . Electromagnetic . | . . . Robot Hit Streak 10 | . 10 . Robot Miss Streak 1 | . 1 . Penetration Max . | . . . Secondary Targets . | . . . Shots Hit Robots 25 | . 18 7 Core Hits 9 | . 4 5 Critical Hits . | . . . Critical Kills . | . . . Critical Parts Destroyed . | . . . Melee Attacks 13 | . . 13 Impact . | . . . Slashing 13 | . . 13 Piercing . | . . . Sneak Attacks 3 | . . 3 Combat Hostiles . | . . . Follow-up Attacks . | . . . Damage Inflicted 602 | . 183 419 Guns 183 | . 183 . Cannons . | . . . Explosions . | . . . Melee 419 | . . 419 Ramming . | . . . Kinetic 96 | . 96 . Thermal 87 | . 87 . Explosive . | . . . Electromagnetic . | . . . Impact . | . . . Slashing 419 | . . 419 Piercing . | . . . Highest Corruption 1 | . 1 1 Average Corruption 1 | . 1 1 Corruption Purged . | . . . Effects 1 | . . 1 Message Errors 1 | . . 1 Overload Shots . | . . . Overflow Damage 59 | . . 59 Projectiles . | . . . Explosions . | . . . Melee 59 | . . 59 Knockbacks . | . . . Impact . | . . . Kinetic . | . . . Secondary . | . . . Self-Inflicted Damage . | . . . Shots . | . . . Rammed . | . . . Targets Rammed . | . . . Kicked . | . . . Crushed . | . . . Highest Temperature 125 | . 125 . Average Temperature 75 | . 75 . Received Heat Transfer 192 | . 90 102 Siege Activations . | . . . Robots Corrupted . | . . . Combat Hostiles . | . . . Parts Fried . | . . . Impact Corruptions . | . . . Robots Melted . | . . . Combat Hostiles . | . . . Parts Melted 2 | . 2 . Heat Transferred 259 | . 259 . Parts Sabotaged . | . . . Parts Stolen . | . . . Parts Stripped . | . . . Power Chain Reactions . | . . . Missiles Intercepted . | . . . Alert | -11 -10 -10 ------- Run | Scr Mat Min Peak Influence 71 | . 55 71 Initial 21 | . . 21 Average 24 | . 12 31 Maximum Alert Level . | . . . Low Security (%) 100 | 100 100 100 Level 1 . | . . . Level 2 . | . . . Level 3 . | . . . Level 4 . | . . . Level 5 . | . . . High Security . | . . . Max Security . | . . . Squads Dispatched 1 | . 1 . Investigation . | . . . Extermination . | . . . Reinforcement 1 | . 1 . Assault . | . . . Garrison . | . . . Intercept . | . . . Construction Impeded . | . . . Haulers Reinforced . | . . . Stealth | -11 -10 -10 --------- Run | Scr Mat Min Distress Signals . | . . . Communications Jammed . | . . . Distress Signals . | . . . Times Spotted 8 | . 4 4 Peak Tracking Total 2 | . 2 2 Tactical Retreats . | . . . Traps | -11 -10 -10 ------- Run | Scr Mat Min Traps Triggered 3 | . 1 2 Indirectly . | . . . Trap Hack Attempts . | . . . Triggered . | . . . Disarmed . | . . . Reprogrammed . | . . . Reused . | . . . Traps Extracted . | . . . Installed . | . . . Triggered . | . . . Machines | -11 -10 -10 ---------- Run | Scr Mat Min Machines Disabled . | . . . Max in Single Turn . | . . . Machines Sabotaged . | . . . Garrisons Compromised . | . . . Overloaded Fab Kills . | . . . Fab Network Shutdowns . | . . . Hacking | -11 -10 -10 --------- Run | Scr Mat Min Machines Accessed 1 | . . 1 Terminals . | . . . Fabricators . | . . . Repair Stations . | . . . Recycling Units . | . . . Scanalyzers . | . . . Garrison Access . | . . . Total Hacks 1 | . . 1 Successful 1 | . . 1 Failed . | . . . Catastrophic . | . . . Database Lockouts . | . . . Manual . | . . . Terminals . | . . . Fabricators . | . . . Repair Stations . | . . . Recycling Units . | . . . Scanalyzers . | . . . Garrison Access . | . . . Terminal Hacks 1 | . . 1 Open Door 1 | . . 1 Fabricator Hacks . | . . . Repair Station Hacks . | . . . Recycling Unit Hacks . | . . . Scanalyzer . | . . . Garrison Access Hacks . | . . . Unauthorized Hacks . | . . . Terminals . | . . . Fabricators . | . . . Repair Stations . | . . . Recycling Units . | . . . Scanalyzers . | . . . Garrison Access . | . . . Data Cores Recovered . | . . . Used . | . . . Hacking Detections . | . . . Full Trace Events . | . . . Feedback Events . | . . . Feedback Blocked . | . . . Robot Schematics Acquired . | . . . Robots Built . | . . . Matter . | . . . Time . | . . . Total Robot Build Rating . | . . . Part Schematics Acquired . | . . . Parts Built . | . . . Matter . | . . . Time . | . . . Total Part Build Rating . | . . . Parts Repaired . | . . . Time . | . . . Parts Recycled . | . . . Recycled Matter . | . . . Retrieved Matter . | . . . Retrieved Components . | . . . Parts Scanalyzed . | . . . Part Schematics Acquired . | . . . Parts Damaged . | . . . Bothacking | -11 -10 -10 ------------ Run | Scr Mat Min Used RIF Installer . | . . . Robots Hacked . | . . . Non-combat . | . . . Combat . | . . . Robot Hacks Applied . | . . . Relay Couplers Released . | . . . Robots Rewired . | . . . Allies Hacked . | . . . Hacks Repelled . | . . . Allies | -11 -10 -10 -------- Run | Scr Mat Min Total Allies . | . . . Largest Group . | . . . Highest-Rated Group . | . . . Highest-Rated Ally . | . . . Total Orders . | . . . Ally Attacks . | . . . Total Damage . | . . . Kills . | . . . Allies Corrupted . | . . . Allies Melted . | . . . Intel | -11 -10 -10 ------- Run | Scr Mat Min Robot Analysis Total . | . . . Derelict Logs Recovered 1 | . . 1 Drone Launches . | . . . Drone Recoveries . | . . . Exploration | -11 -10 -10 ------------- Run | Scr Mat Min Turns Passed 497 | 25 137 335 Spaces Moved 747 | 40 184 523 Core 619 | 40 184 395 Treads . | . . . Legs . | . . . Wheels . | . . . Hover . | . . . Flight 128 | . . 128 Fastest Speed 40 | 50 50 40 Average Speed 48 | 50 50 47 Slowest Speed 50 | 50 50 50 Overloaded Moves . | . . . Propulsion Burnouts . | . . . Robots Hopped . | . . . Cave-ins Triggered . | . . . Exploration Rate (%) 37 | 4 27 81 Regions Visited 2 Branch Regions 1 Pre-discovered Areas 1 | . . 1 Known Exits Taken . | . . . Unknown Exits Taken 2 | 1 1 . Scrap Searched 1 | . . 1 Spaces Dug . | . . . Terrain Destroyed . | . . . Melee . | . . . Projectile . | . . . AOE . | . . . Terrain Rammed . | . . . Walls Destroyed . | . . . Machines Disabled . | . . . Actions | -11 -10 -10 --------- Run | Scr Mat Min Total 844 | 43 210 591 Wait 58 | . 12 46 Move 745 | 39 183 523 Hop . | . . . Pick Up 6 | 2 2 2 Fast Attach 6 | 2 2 2 Attach 1 | . . 1 Detach 1 | . . 1 Swap . | . . . Drop 3 | . . 3 Fire 11 | . 11 . Melee 13 | . . 13 Ram . | . . . Kick . | . . . Crush . | . . . Escape Stasis . | . . . Rewire . | . . . Trap . | . . . Miscellaneous . | . . . Route ------- -11/Scrapyard -10/Materials -10/Mines (discovered 2 exits: [*Mat x2]) History --------- Turn | Location | Event 2 | -11/Scrapyard | Discovered new exit (range 16) 26 | -11/Scrapyard | Entered Materials 114 | -10/Materials | Discovered new exit (range 15) 163 | -10/Materials | Entered Mines 166 | -10/Mines | Met a Derelict who couldn't figure out how to use a Trap Extractor 225 | -10/Mines | A weapon hastily lodged in a ceiling crevice suddenly fell to the ground 255 | -10/Mines | YI-UF0 nonchalantly dropped a Grenade Launcher on the ground 271 | -10/Mines | Learned location of Mines (-9) 271 | -10/Mines | Discovered new exit (range 10) 305 | -10/Mines | Build established: Mutant 387 | -10/Mines | Core integrity fell below 50% 387 | -10/Mines | Discovered new exit (range 4) 466 | -10/Mines | Core integrity fell below 20% 498 | -10/Mines | Destroyed by G-34 Mercenary with Small Laser Last Messages --------------- 00388_ Found Hcp. Storage Unit. 00388_ Found Flight Unit. 00388_ Found 15 Matter. 00389_ Acquired 3 matter. 00389_ Acquired Flight Unit. 00390_ Acquired 10 matter. 00404_ YI-UF0: "WHOMP!" 00404_ G-47 Trooper destroyed. 00409_ YI-UF0: "WHOMP!" 00409_ G-34 Mercenary destroyed. 00409_ R-06 Scavenger collects Wheel. 00414_ Sneak attack on R-06 Scavenger. 00414_ R-06 Scavenger destroyed. 00470_ K-01 Serf collects debris. 00470_ Flight Unit destroyed. 00473_ G-47 Trooper destroyed. 00474_ K-01 Serf collects debris. 00480_ Sneak attack on K-01 Serf. 00480_ K-01 Serf destroyed. 00481_ R-06 Scavenger collects Wheel. Map ----- +----------------------------------------------------+ | # #??????## ########????????????????????????? | | # #??????## #????????????????????????? | | # #??????# ###### #?#####??????????????????? | | # #??????# #????# ### ##?????????????????? | | # #??????# ##????# ## #?????????????????? | | # #?????# ##?????# #?????????????????? | | # #?????# ##??????# ## ##?????????????????? | | # #??### #???????# ## ##??????????????????? | | # #? ######### # #???????????????????? | | # # """ ####????????????????? | | """ #####????????????? | | """ ######### ##???????????? | | ## #???????## ##??????????? | | #?#### #?????????## = #??????????? | | #??????#######??????????## % #??????????? | | #????????????????????????## ! ##??????????? | | #?????????????????????????## ####???????????? | | #?????????????????????????## #??????????????? | | #?????????????????????????# #??????????????? | | #?????????????????????????# #??????????????? | | #????????????????####?????# #??????????????? | | #???????????????## ##????# ##??????????????? | | #??????????????## ##???#! ##???????????????? | | #??????????##### ##?##% ##????????????????? | | #?????????## ### ##????????????????? | | #?????????# ## @ g t ##???????????????? | | #?????????# ###### #???????????????? | | ###???????####????## #???????????????? | | ##???????????????## ## #???????????????? | | %= ####?????????????## ##?###???????????????? | | [ ##?????????????## #????????????????????? | | < #??????????????# ???????????????????? | | #?????????????? ??????????????????? | | ! [ ##?????????????? ##?????????????????? | | ! #?????????????? # ##??????????????????? | | # # # #?????????????? ## #???????????????????? | | ###### #????????????? ##? #???????????????????? | | #????# #????????????? ##??? #???????????????????? | | #???## #######???????#????? ???????????????????? | | #???# #?????????????###???????????????????? | | #???# #???????????????????????????????????? | | #???# !!! #???????????????????????????????????? | | #???# !! ! #???????????????????????????????????? | | #???# !!!! #???????????????????????????????????? | | ##??# !!! #???????????????????????????????????? | | ##?# #???????????????????????????????????? | | ### #???????????????????????????????????? | | ## #???????????????????????????????????? | | ###########???????????????????????????????????? | | #???#################????????????????????????? | +----------------------------------------------------+ Best States ------------- Heat Dissipation 25 Energy Generation 5 Energy Capacity 100 Matter Stores 300 Matter Capacity 300 Sight Range 16 Terrain Scan Density 10 Evasion (%) 62 Targeting Accuracy 10 Item Schematics ----------------- None Robot Schematics ------------------ None Fabricated ------------ Nothing Alien Tech Used ----------------- None Achievements -------------- None Challenges ------------ None Game ------ Seed IonicTrackerRailgun Manual? 0 Play Time 00:09:05 Cumulative 75.7 hours Start 2020.09.29 @ 19:05:14 End 2020.09.29 @ 19:20:21 Sessions 2 Manual Loads 0 Difficulty Rogue Special Mode None Game No. 104 Rogue 80 Adventurer 22 Explorer 2 Win Type - Total 1 Types 1/0/0/0/0/0/0/0/0 Lore% 43 Gallery% 47 Achievement% 39 Wizard Run 0 Options --------- ASCII 0 Keyboard 0 Movement Numpad Keybinds 0 Fullscreen 1 Font 14/SmallcapsGlow Map View 84x54 Tactical HUD 1 Map Filters NONE Filters NONE Steam 1 RUN: 07ef3229-b697-4e12-83b8-1db23736a1b4